Workbook

Sheet דוגמאות מרצה - ריבית שאלות 1-5
I1: ריבית נקובה/פשוטה/תעריפית/חוזית - ריבית אפקטיבית
I2: ריבית נקובה:
F4: שאלה 1
I9: ריבית נקובה שנתית | K9: 12%
L11: כמות תקופות בשנה
I12: ריבית חודשית | J12: =$K$9/L12 -> 1.00% | L12: 12
I13: ריבית דו חודשית | J13: =$K$9/L13 -> 2.00% | L13: 6
I14: ריבית רבעונית | J14: 3.00% | L14: 4
I15: ריבית חצי שנתית | J15: 6.00% | L15: 2
I29: ריבית אפקטיבית:
F31: שאלה 2
I39: מצב 1 - מחשבים את הקרן והריבית בסוף:
I40: גובה הלוואה - בזמן 0 | J40: 10000
I41: ריבית הנקובה השנתית | J41: 5%
I42: סכום הריבית בתום השנה | J42: =J40*J41 -> 500
I44: הריבית האפקטיבית:
I45: שיטה 1: | J45: =J42/J40 -> 5% | K45: תשלום הריבית ביחס לגובה ההלוואה
I46: שיטה 2: | J46: =(J40+J42)/J40-1 -> 5% | K46: תשלום בסוף ביחס לתשלום בהתחלה
L48: 1 | M48: 0
I49: מצב 2 - מחשבים את הריבית כל רבעון: | L49: =J52 -> ₪ 10,509.45 | M49: =-J40 -> -10000
I50: מספר תקופות בשנה | J50: 4
I51: ריבית רבעונית | J51: =J41/J50 -> 1.25% | K51: נתונה ריבית נקובה ולכן חלוקה ב - 4
I52: ערך עתידי - לאחר 4 רבעונים | J52: =FV(J51,J50,,-J40) -> ₪ 10,509.45
I53: הריבית האפקטיבית: | J53: =RATE(1,,M49,L49) -> 5.095% | K53: =(1+J51)^4-1 -> 5.09%
I54: מסקנה: הריבית האפקטיבית גבוהה מהריבית הנקובה, כי מחושב ריבית דה - ריבית
F57: שאלה 3
I69: ריבית נקובה שנתית | J69: 12% | K69: הריבית הקטנה | L69: כמות התקופות בשנה | M69: שימוש בפונקצית EFFECT:
I70: ריבית אפקטיבית שנתית, שנתון כי מחושבת חודשית | J70: =(1+K70)^L70-1 -> 12.6825% | K70: =$J$69/L70 -> 1.00% | L70: 12 | M70: =EFFECT($J$69,L70) -> 12.6825%
I71: ריבית אפקטיבית שנתית, שנתון כי מחושבת כל 2 חודשים (חודשיים) | J71: =(1+K71)^L71-1 -> 12.6162% | K71: =$J$69/L71 -> 2.00% | L71: 6 | M71: =EFFECT($J$69,L71) -> 12.6162%
I72: ריבית אפקטיבית שנתית, שנתון כי מחושבת רבעונית | J72: 12.5509% | K72: 3.00% | L72: 4 | M72: 12.5509%
I73: ריבית אפקטיבית שנתית, שנתון כי מחושבת חצי שנתית | J73: 12.3600% | K73: 6.00% | L73: 2 | M73: 12.3600%
M74: שימו לב:
M75: הצבת ריבית נומינלית שנתית
F80: שאלה 4
I86: ריבית נקובה שנתית | J86: 8%
I87: ריבית רבעונית | J87: =J86/J88 -> 2.0000%
I88: מספר תקופות בשנה | J88: 4
K90: מספר רבעונים בתקופה
I91: ריבית אפקטיבית לשנה | J91: =(1+$J$87)^K91-1 -> 8.2432% | K91: 4 | L91: =EFFECT($J$86,J88) -> 8.24%
I92: ריבית אפקטיבית לשנתיים | J92: =(1+$J$87)^K92-1 -> 17.1659% | K92: 8 | L92: =EFFECT($J$86,J89) -> 
I93: ריבית אפקטיבית ל - 3 שנים | J93: 26.8242% | K93: 12
F108: שאלה 5
I115: ריבית אפקטיבית שנתית | J115: 24.56700%
I116: ריבית חודשית | J116: =(1+J115)^(1/J117)-1 -> 1.8475%
J117: 12
J119: =(1+J116)^J117-1 -> 24.56700%
I136: ריבית גלומה:
J146: גובה ההלוואה - זמן 0 | K146: גובה עמלה | L146: סכום נטו בזמן 0 | M146: סכום להחזר בזמן 1
J147: 100,000 | K147: 750 | L147: =J147-K147 -> 99,250 | M147: =FV(J150,J149,,-J147) -> 109,000
I149: תקופות בשנים | J149: 1
I150: ריבית שנתית | J150: 9%
I152: הריבית הגלומה | J152: =M147/L147-1 -> 9.8237%

Sheet תירגול עצמי - ריביות שאלות 6-8
I1: ריבית נקובה/פשוטה/תעריפית/חוזית - ריבית אפקטיבית
F3: שאלה 6
I12: ריבית נקובה שנתית | J12: 18%
I14: מספר תקופות בשנה: | K14: ריבית לתקופה קטנה | L14: ריבית אפקטיבית שנתית | M14: שימוש בפונקציה EFFECT
I15: רבעונית | J15: 4 | K15: =$J$12/J15 -> 4.500% | L15: =(1+K15)^J15-1 -> 19.2519% | M15: =EFFECT($J$12,J15) -> 19.2519%
I16: יומית | J16: 365 | K16: =$J$12/J16 -> 0.049% | L16: =(1+K16)^J16-1 -> 19.7164% | M16: =EFFECT($J$12,J16) -> 19.7164%
I17: חודשית | J17: 12 | K17: 1.500% | L17: 19.5618% | M17: 19.5618%
F30: שאלה 7
I34: ריבית אפקטיבית שנתית | J34: 13.47%
I35: ריבית דו חודשית | J35: =(1+J34)^(1/J36)-1 -> 2.1285%
I36: תקופות | J36: 6
F61: שאלה 8
J67: גובה ההלוואה - זמן 0 | K67: גובה עמלה | L67: סכום נטו בזמן 0 | M67: סכום להחזר בזמן 1
I68: 6.00% | J68: 100,000 | K68: =J68*J72 -> 2,500.00 | L68: =M75 -> 97,500 | M68: =FV(I68,1,,J68) -> -106,000
I70: תקופות בשנים | J70: 1
I71: ריבית שנתית | J71: 6%
I72: גובה עמלה | J72: 2.50% | L72: 1 | M72: 0
I73: הריבית האמיתית: | J73: =RATE(1,,M75,L73) -> 8.7179% | L73: =M68 -> -106,000 | M73: 100000
M74: =-K68 -> -2,500.00
M75: =SUM(M73:M74) -> 97500

Sheet תרגול ריביות וסדרות שאלות 9-13
I2: קיבלת הצעת עבודה חדשה אשר כוללת את התנאים הבאים: בשנה הראשונה שכר חודשי של 6,000 ש"ח, ובשנה השניה שכר חודשי של 9,000 ש"ח. הריבית האפקטיבית השנתית בכל תקופה זו תעמוד על 12.68%. מהו הסכום המינימלי שתהיה מוכן לקבל היום במקום סדרת התקבולים שלעיל?
F3: שאלה 9
I7: נתוני השאלה:
I8: סדרה ראשונה | L8: סדרה שנייה
I9: 12 | J9: N | L9: 12 | M9: N
I10: 12.680% | J10: R (year) | L10: 12.680% | M10: R (year)
I11: =(1+I10)^(1/12)-1 -> 1.00% | J11: R (month) | L11: =(1+L10)^(1/12)-1 -> 1.00% | M11: R (month)
I12: 6000 | J12: PMT | L12: 9000 | M12: PMT
I13: =PV(I11,I9,-I12,,) -> ₪ 67,531.26 | J13: PV(0) | L13: =PV(L11,L9,-L12,,) -> ₪ 101,296.89 | M13: PV(12)
L14: =PV(L11,L9,,-L13) -> ₪ 89,897.85 | M14: PV(0)
L17: =L14+I13 -> ₪ 157,429.11
F39: שאלה 10 | I39: במשך 20 השנים האחרונות הפקידה סבתא דליה בתוכנית חיסכון סכום של 4,000 ש"ח בכל שנה אי זוגית, וסכום של 3,000 ש"ח בכל שנה זוגית (סה"כ 20 הפקדות שונות). אם ידוע כי תוכנית החיסכון מניבה ריבית שנתית בשיעור של 10% וכי כל ההפקדות בוצעו בסוף השנה, כמה כסף נצבר לזכותה בתוכנית נכון להיום?
I46: נתוני השאלה:
I47: סדרה זוגית | L47: סדרה אי- זוגית
I48: 10 | J48: N | L48: 10 | M48: N
I49: 10% | J49: R (year) | L49: 10% | M49: R (year)
I50: =(1+I49)^2-1 -> 21.00% | J50: R (2_years) | L50: =(1+L49)^2-1 -> 21.00% | M50: R (2_years)
I51: 3000 | J51: PMT | L51: 4000 | M51: PMT
I52: =FV(I50,I48,-I51,,) -> ₪ 81,821.43 | J52: FV(20) | L52: =FV(L50,L48,L51,,) -> ₪ -109,095.24 | M52: FV(19)
L53: =FV(L49,1,,L52) -> ₪ 120,004.76 | M53: FV(20)
L55: =L53+I52 -> ₪ 201,826.19
I80: אופיר מתחיל להפקיד סכום חודשי קבוע בגובה 300 ש"ח ל-90 חודשים.בתוכנית חיסכון המעניקה ריבית אפקטיבית שנתית של 6.16% לתקופה של 30 החודשים הראשונים. החל מחודש 31 עולה הריבית האפקטיבית השנתית לשיעור של 12.68% וזאת לתקופה של 60 חודשים. מהו הסכום שיצטבר לאופיר בתוכנית החיסכון בתום 90 חודשים אלו?
F81: שאלה 11
I87: נתוני השאלה:
I88: סדרת הפקדות ראשונה | L88: סדרת הפקדות שניה
I89: 30 | J89: N | L89: 60 | M89: N
I90: 6.16% | J90: R (year) | L90: 12.68% | M90: R (year)
I91: =(1+I90)^(1/12)-1 -> 0.499% | J91: R (1_month) | L91: =(1+L90)^(1/12)-1 -> 1.000% | M91: R (1_month)
I92: 300 | J92: PMT | L92: -300 | M92: PMT
I93: ? | J93: FV(90) | L93: ? | M93: FV(90)
I95: =FV(I91,I89,I92,,) -> -₪9,683.13 | J95: FV(30) | L95: =FV(L91,L89,L92,,) -> ₪24,499.43 | M95: FV(90)
I96: =FV(L91,L89,,I95) -> ₪17,589.35 | J96: FV(90)
I99: =I96+L95 -> ₪ 42,088.78 | J99: FV(90) | K99: חיבור שתי סדרות ההפקדות
K100: נשים לב שלטובת הזזת הסדרה הראשונה קדימה, נעזרנו בריבית ששררה החל מחודש 31 ואילך.
I107: בתאריך 1.4.2020 החלטת לפתוח עסק עצמאי לשיווק דיגיטלי ברשת האינטרנט. ההכנסות בעסק יתקבלו כל חודשיים, ויעמדו על 10,000 ש"ח החל מסוף חודש זה. בתום כל שנה קלנדרית (31.12) תידרש לשלם לרו"ח שלך סכום של 2,200 ש"ח על עריכה והגשה של דו"ח שנתי לרשויות המס בהנחה שהעסק יעבוד עד ה- 31.12.2022, מהו הערך הנוכחי של כל התקבולים והתשלומים של העסק הנח ריבית שנתית של 19.4%
F108: שאלה 12
I114: נתוני השאלה:
I115: סדרה תקבולים | L115: סדרת תשלומים לרו"ח
I116: 17 | J116: N | L116: 3 | M116: N
I117: 19.40% | J117: R (year) | L117: =I117 -> 19.40% | M117: R (year)
I118: =(1+I117)^(1/6)-1 -> 2.999% | J118: R (2_months) | L118: =(1+L117)^(1/12)-1 -> 1.49% | M118: R (1_month)
I119: 10000 | J119: PMT | L119: 2200 | M119: PMT
I120: ? | J120: PV(0) | L120: ? | M120: PV(0)
I122: =PV(I118,I116,I119,,) -> -₪131,669.16 | J122: PV(-1) | L122: =PV($L$118,N122,,$L$119) -> -₪1,926.06 | M122: PV(0) | N122: 9
I123: =FV(L118,1,,I122) -> ₪133,629.11 | J123: PV(0) | L123: =PV($L$118,N123,,$L$119) -> -₪1,613.11 | M123: PV(0) | N123: 21
L124: -₪1,351.02 | M124: PV(0) | N124: 33
L125: =SUM(L122:L124) -> -₪4,890.19
I126: =SUM(I123,L125) -> ₪ 128,738.92 | J126: PV(0) | K126: חיבור סדרת התקבולים והתשלומים בזמן 0
I132: קופת הגמל: "חיסכון פנסיוני" מציעה לך תוכנית חיסכון בריבית משתנה לתקופה של 3 שנים. גובה הריבית בשנה הראשונה יעמוד על 2% גובה הריבית בשנה השניה יעמוד על 3% גובה הריבית בשנה השלישית יעמוד על 4% מהו הערך הנוכחי של תכנית חסכון זו, בהנחה ואתה מפקיד סכום של 2,000 ש"ח בסוף כל שנה?
F133: שאלה 13
I139: נתוני השאלה:
J140: ריבית | K140: הפקדה | L140: שווי היום
I141: שנה 1 | J141: 2% | K141: 2,000
I142: שנה 2 | J142: 3% | K142: 2,000
I143: שנה 3 | J143: 4% | K143: 2,000 | L143: =PV(J143,1,,K143) -> -1,923.08
J146: PV(0) | K146: חיבור הסכומים, כאשר כולם הוונו לאותה נקודת זמן (0)
J149: 3 | K149: 2 | L149: 1 | M149: 0
K150: 2000 | L150: 2000
K151: =-L143 -> 1,923.08 | L151: =PV(J142,1,,-K152) -> ₪ 3,808.81
K152: =K150+K151 -> 3,923.08 | L152: =L150+L151 -> 5,808.81 | M152: =PV(J141,1,,-L152) -> ₪ 5,694.91
